[Event "*** MasterClass Titled Tuesday Blitz"]
[Site "Chess.com"]
[Date "2017.12.12"]
[Round "1"]
[White "ShimanovAlex"]
[Black "Alliswell998"]
[Result "1-0"]
[WhiteElo "2647"]
[BlackElo "2335"]
[TimeControl "180+2"]
[EndTime "13:07:49 PST"]
[Termination "ShimanovAlex won by resignation"]

1. d4 {[%clk 0:03:01.9]} 1... Nf6 {[%clk 0:03:00.6]} 2. c4 {[%clk 0:03:02.3]}
2... c5 {[%clk 0:03:01.9]} 3. Nf3 {[%clk 0:03:01.9]} 3... cxd4 {[%clk
0:03:02.7]} 4. Nxd4 {[%clk 0:03:02.9]} 4... g6 {[%clk 0:03:04]} 5. Nc3 {[%clk
0:03:03.3]} 5... b6 {[%clk 0:03:04.9]} 6. e4 {[%clk 0:03:02.8]} 6... d6 {[%clk
0:03:06.2]} 7. Be2 {[%clk 0:03:02.7]} 7... Bg7 {[%clk 0:03:07.2]} 8. O-O {[%clk
0:03:03.8]} 8... O-O {[%clk 0:03:03.2]} 9. Be3 {[%clk 0:03:04.2]} 9... Bb7
{[%clk 0:03:04.1]} 10. f3 {[%clk 0:03:05.5]} 10... Nbd7 {[%clk 0:03:04.7]} 11.
Qd2 {[%clk 0:03:06.6]} 11... Rc8 {[%clk 0:03:02.3]} 12. Rac1 {[%clk 0:03:07.6]}
12... a6 {[%clk 0:03:02.3]} 13. Rfd1 {[%clk 0:03:07.9]} 13... Re8 {[%clk
0:02:35.5]} 14. b3 {[%clk 0:02:53.2]} 14... e6 {[%clk 0:02:34.8]} 15. Nc2 {[%clk
0:02:43.7]} 15... Bf8 {[%clk 0:02:34.2]} 16. Qe1 {[%clk 0:02:29.3]} 16... Qc7
{[%clk 0:02:32.5]} 17. Qf2 {[%clk 0:02:29.3]} 17... Qb8 {[%clk 0:02:31.4]} 18.
Na4 {[%clk 0:02:26]} 18... Nc5 {[%clk 0:02:23.4]} 19. Nxb6 {[%clk 0:02:25.6]}
19... Rc6 {[%clk 0:02:17.3]} 20. Bxc5 {[%clk 0:02:17.5]} 20... Rxc5 {[%clk
0:02:18.6]} 21. Na4 {[%clk 0:02:18]} 21... Rh5 {[%clk 0:02:12.6]} 22. h3 {[%clk
0:02:16.1]} 22... Bc6 {[%clk 0:02:04]} 23. Nc3 {[%clk 0:02:13.4]} 23... Ba8
{[%clk 0:01:48.1]} 24. Nd4 {[%clk 0:02:11.5]} 24... d5 {[%clk 0:01:44.8]} 25. f4
{[%clk 0:02:11.2]} 25... Rh6 {[%clk 0:01:31.3]} 26. e5 {[%clk 0:02:09.5]} 26...
Ne4 {[%clk 0:01:23.8]} 27. Nxe4 {[%clk 0:02:10.5]} 27... dxe4 {[%clk 0:01:25.7]}
28. c5 {[%clk 0:02:11.8]} 28... Qa7 {[%clk 0:01:22.2]} 29. b4 {[%clk 0:02:11.7]}
29... Rc8 {[%clk 0:01:20.8]} 30. Nb3 {[%clk 0:02:08.7]} 30... Qb7 {[%clk
0:01:08.1]} 31. Na5 {[%clk 0:02:08]} 31... Qxb4 {[%clk 0:01:07.9]} 32. Nb3
{[%clk 0:02:05.2]} 32... Qb7 {[%clk 0:01:01.6]} 33. Qe3 {[%clk 0:02:02.3]} 33...
Be7 {[%clk 0:00:46.3]} 34. Rc2 {[%clk 0:01:57.5]} 34... Qc6 {[%clk 0:00:43.5]}
35. Rdc1 {[%clk 0:01:49.7]} 35... Rh4 {[%clk 0:00:38.1]} 36. Nd4 {[%clk
0:01:42.1]} 36... Qc7 {[%clk 0:00:36.4]} 37. Bxa6 {[%clk 0:01:39.8]} 37... Rd8
{[%clk 0:00:36.8]} 38. c6 {[%clk 0:01:29.7]} 38... g5 {[%clk 0:00:33.5]} 39.
fxg5 {[%clk 0:01:28.4]} 39... Qxe5 {[%clk 0:00:34.1]} 40. c7 {[%clk 0:01:28.1]}
40... Rf8 {[%clk 0:00:25.7]} 41. Nf3 {[%clk 0:01:22.8]} 41... Qg3 {[%clk
0:00:21.4]} 42. Qf2 {[%clk 0:01:21.2]} 42... Qxf2+ {[%clk 0:00:19.8]} 43. Kxf2
{[%clk 0:01:22.4]} 43... exf3 {[%clk 0:00:20.5]} 44. c8=Q {[%clk 0:01:23.7]}
44... Rxc8 {[%clk 0:00:21.4]} 45. Rxc8+ {[%clk 0:01:24.7]} 45... Kg7 {[%clk
0:00:23.3]} 46. Rxa8 {[%clk 0:01:24.9]} 46... Bxg5 {[%clk 0:00:23.3]} 47. Rc4
{[%clk 0:01:23.2]} 47... fxg2 {[%clk 0:00:22.6]} 48. Rxh4 {[%clk 0:01:22.2]}
48... Bxh4+ {[%clk 0:00:23.9]} 49. Kxg2 {[%clk 0:01:23.6]} 1-0

[Event "*** MasterClass Titled Tuesday Blitz"]
[Site "Chess.com"]
[Date "2017.12.12"]
[Round "1"]
[White "bascheyaro"]
[Black "Vamostodorecto"]
[Result "1-0"]
[WhiteElo "2636"]
[BlackElo "2328"]
[TimeControl "180+2"]
[EndTime "13:07:59 PST"]
[Termination "bascheyaro won on time"]

1. d4 {[%clk 0:03:01.9]} 1... Nf6 {[%clk 0:02:58.6]} 2. c4 {[%clk 0:03:03]} 2...
g6 {[%clk 0:02:58.8]} 3. Nf3 {[%clk 0:03:04.4]} 3... d5 {[%clk 0:02:59.9]} 4.
Bf4 {[%clk 0:03:04.7]} 4... Bg7 {[%clk 0:02:59.5]} 5. e3 {[%clk 0:03:06.1]} 5...
c5 {[%clk 0:03:01]} 6. dxc5 {[%clk 0:03:03.2]} 6... O-O {[%clk 0:02:50.3]} 7.
Nc3 {[%clk 0:03:02.8]} 7... Qa5 {[%clk 0:02:33.6]} 8. Qb3 {[%clk 0:03:03.1]}
8... Ne4 {[%clk 0:02:23.3]} 9. Be5 {[%clk 0:03:00.8]} 9... Nxc5 {[%clk
0:01:50.5]} 10. Qb5 {[%clk 0:03:01.3]} 10... Qxb5 {[%clk 0:01:38]} 11. Nxb5
{[%clk 0:03:03.2]} 11... Nba6 {[%clk 0:01:27.4]} 12. Bxg7 {[%clk 0:03:03.7]}
12... Kxg7 {[%clk 0:01:29.3]} 13. cxd5 {[%clk 0:03:04.7]} 13... Bf5 {[%clk
0:01:26.2]} 14. Bc4 {[%clk 0:03:03.6]} 14... Nd3+ {[%clk 0:01:26.1]} 15. Bxd3
{[%clk 0:03:04.4]} 15... Bxd3 {[%clk 0:01:28]} 16. Nc3 {[%clk 0:03:05.7]} 16...
Nb4 {[%clk 0:01:23.7]} 17. Kd2 {[%clk 0:03:05.6]} 17... Bc4 {[%clk 0:01:22.4]}
18. e4 {[%clk 0:03:06.5]} 18... Rad8 {[%clk 0:01:06.2]} 19. b3 {[%clk
0:02:58.3]} 19... Ba6 {[%clk 0:01:04.6]} 20. Rad1 {[%clk 0:02:59.3]} 20... e6
{[%clk 0:00:48.6]} 21. a3 {[%clk 0:02:43.5]} 21... exd5 {[%clk 0:00:47.9]} 22.
exd5 {[%clk 0:02:40.4]} 22... Nxd5 {[%clk 0:00:47.8]} 23. Nxd5 {[%clk 0:02:42]}
23... Rxd5+ {[%clk 0:00:49.3]} 24. Kc3 {[%clk 0:02:43.5]} 24... Rc8+ {[%clk
0:00:47.1]} 25. Kb2 {[%clk 0:02:44.4]} 25... Rdc5 {[%clk 0:00:30.6]} 26. Rd2
{[%clk 0:02:44.7]} 26... b6 {[%clk 0:00:31.1]} 27. Re1 {[%clk 0:02:44.9]} 27...
R5c7 {[%clk 0:00:28.8]} 28. Nd4 {[%clk 0:02:43.3]} 28... Kf8 {[%clk 0:00:20.2]}
29. f3 {[%clk 0:02:43.2]} 29... Re7 {[%clk 0:00:21]} 30. Rxe7 {[%clk 0:02:42.5]}
30... Kxe7 {[%clk 0:00:22.9]} 31. Nc2 {[%clk 0:02:43.9]} 31... Kf6 {[%clk
0:00:21]} 32. Ne3 {[%clk 0:02:44.6]} 32... Ke7 {[%clk 0:00:17.6]} 33. a4 {[%clk
0:02:45.1]} 33... Rd8 {[%clk 0:00:17.4]} 34. Rxd8 {[%clk 0:02:45.9]} 34... Kxd8
{[%clk 0:00:19]} 35. Kc3 {[%clk 0:02:47.8]} 35... Ke7 {[%clk 0:00:20]} 36. Kd4
{[%clk 0:02:49.3]} 36... Kd6 {[%clk 0:00:20.1]} 37. Nd5 {[%clk 0:02:49.2]} 37...
Bf1 {[%clk 0:00:19.3]} 38. Ne3 {[%clk 0:02:49.1]} 38... Ba6 {[%clk 0:00:20.8]}
39. f4 {[%clk 0:02:49.8]} 39... Ke6 {[%clk 0:00:20.6]} 40. g3 {[%clk 0:02:48.7]}
40... f5 {[%clk 0:00:21.5]} 41. b4 {[%clk 0:02:45.8]} 41... Bb7 {[%clk
0:00:21.4]} 42. Nc4 {[%clk 0:02:47]} 42... h6 {[%clk 0:00:21.1]} 43. Ne5 {[%clk
0:02:42.6]} 43... g5 {[%clk 0:00:21.5]} 44. fxg5 {[%clk 0:02:44]} 44... hxg5
{[%clk 0:00:23.3]} 45. Nc4 {[%clk 0:02:35.5]} 45... f4 {[%clk 0:00:22.5]} 46.
gxf4 {[%clk 0:02:36.6]} 46... gxf4 {[%clk 0:00:24.4]} 47. h4 {[%clk 0:02:35.2]}
47... Kf6 {[%clk 0:00:19.7]} 48. Nd6 {[%clk 0:02:33.3]} 48... Bg2 {[%clk
0:00:16.6]} 49. Nc8 {[%clk 0:02:33.7]} 49... Kf5 {[%clk 0:00:11.5]} 50. Nxa7
{[%clk 0:02:34.4]} 50... Kg4 {[%clk 0:00:12.6]} 51. Nb5 {[%clk 0:02:14.7]} 51...
f3 {[%clk 0:00:13]} 52. Ke3 {[%clk 0:02:13.5]} 52... Kg3 {[%clk 0:00:13.8]} 53.
Nc3 {[%clk 0:02:14.8]} 53... Bf1 {[%clk 0:00:06.4]} 54. h5 {[%clk 0:02:14.1]}
1-0

[Event "*** MasterClass Titled Tuesday Blitz"]
[Site "Chess.com"]
[Date "2017.12.12"]
[Round "1"]
[White "florianschwabeneder"]
[Black "1random"]
[Result "1-0"]
[WhiteElo "2470"]
[BlackElo "2129"]
[TimeControl "180+2"]
[EndTime "13:08:08 PST"]
[Termination "florianschwabeneder won by resignation"]

1. e4 {[%clk 0:03:01.9]} 1... d5 {[%clk 0:02:58.5]} 2. exd5 {[%clk 0:03:02]}
2... Nf6 {[%clk 0:03:00.1]} 3. d4 {[%clk 0:03:02.1]} 3... Bg4 {[%clk 0:03:00]}
4. Be2 {[%clk 0:02:57]} 4... Bxe2 {[%clk 0:03:00.9]} 5. Qxe2 {[%clk 0:02:57.7]}
5... Qxd5 {[%clk 0:03:02.5]} 6. Nf3 {[%clk 0:02:58.6]} 6... e6 {[%clk
0:03:03.7]} 7. c4 {[%clk 0:02:57.8]} 7... Qh5 {[%clk 0:02:54.9]} 8. O-O {[%clk
0:02:55.8]} 8... Bd6 {[%clk 0:02:47.3]} 9. h3 {[%clk 0:02:54.2]} 9... c6 {[%clk
0:02:43.3]} 10. Nc3 {[%clk 0:02:53.3]} 10... O-O {[%clk 0:02:43.8]} 11. Be3
{[%clk 0:02:40.9]} 11... Nbd7 {[%clk 0:02:42.8]} 12. Rab1 {[%clk 0:02:39.3]}
12... c5 {[%clk 0:02:19.6]} 13. Rfd1 {[%clk 0:02:29.3]} 13... Rfd8 {[%clk
0:02:08.4]} 14. d5 {[%clk 0:02:02.1]} 14... exd5 {[%clk 0:01:55.6]} 15. Nxd5
{[%clk 0:02:02.6]} 15... Bf8 {[%clk 0:00:58]} 16. Bg5 {[%clk 0:01:20.3]} 16...
Qg6 {[%clk 0:00:39.1]} 17. Bxf6 {[%clk 0:00:47.6]} 17... Nxf6 {[%clk 0:00:37.9]}
18. Ne5 {[%clk 0:00:48.7]} 18... Qf5 {[%clk 0:00:27.5]} 19. g4 {[%clk
0:00:42.5]} 19... Qg5 {[%clk 0:00:19.4]} 20. Nf3 {[%clk 0:00:32.4]} 20... Qg6
{[%clk 0:00:19.9]} 21. Nxf6+ {[%clk 0:00:22.2]} 21... gxf6 {[%clk 0:00:21.1]}
22. Kg2 {[%clk 0:00:22.1]} 22... Rxd1 {[%clk 0:00:15.8]} 23. Rxd1 {[%clk
0:00:22.4]} 23... f5 {[%clk 0:00:17.4]} 24. Nh4 {[%clk 0:00:20.3]} 24... Qc6+
{[%clk 0:00:10.8]} 25. Qf3 {[%clk 0:00:21.5]} 25... fxg4 {[%clk 0:00:10.4]} 26.
hxg4 {[%clk 0:00:22.2]} 26... Qb6 {[%clk 0:00:08]} 27. b3 {[%clk 0:00:20.8]}
27... Re8 {[%clk 0:00:08.9]} 28. Nf5 {[%clk 0:00:21.1]} 28... Re6 {[%clk
0:00:09.1]} 29. Rd7 {[%clk 0:00:19.6]} 29... Qc6 {[%clk 0:00:07.3]} 30. Qxc6
{[%clk 0:00:19.6]} 30... Rxc6 {[%clk 0:00:08.9]} 31. Rxb7 {[%clk 0:00:19.7]}
31... Ra6 {[%clk 0:00:10.5]} 32. a4 {[%clk 0:00:18.6]} 32... Rg6 {[%clk
0:00:10.8]} 33. Kf3 {[%clk 0:00:18]} 33... h5 {[%clk 0:00:11.1]} 1-0

[Event "*** MasterClass Titled Tuesday Blitz"]
[Site "Chess.com"]
[Date "2017.12.12"]
[Round "1"]
[White "JohanSalomon"]
[Black "BjarkeSahl"]
[Result "1-0"]
[WhiteElo "2513"]
[BlackElo "2229"]
[TimeControl "180+2"]
[EndTime "13:08:12 PST"]
[Termination "JohanSalomon won by resignation"]

1. e4 {[%clk 0:03:01.5]} 1... c6 {[%clk 0:02:56.6]} 2. Nc3 {[%clk 0:02:52.6]}
2... d5 {[%clk 0:02:56.4]} 3. Nf3 {[%clk 0:02:52.4]} 3... dxe4 {[%clk
0:02:49.6]} 4. Nxe4 {[%clk 0:02:52.8]} 4... Nf6 {[%clk 0:02:49.7]} 5. Qe2 {[%clk
0:02:53.6]} 5... Nxe4 {[%clk 0:02:46.8]} 6. Qxe4 {[%clk 0:02:54.2]} 6... Nd7
{[%clk 0:02:32.2]} 7. d4 {[%clk 0:02:24.1]} 7... Nf6 {[%clk 0:02:29.3]} 8. Qd3
{[%clk 0:02:12.9]} 8... Qb6 {[%clk 0:01:43.6]} 9. Be2 {[%clk 0:02:09.9]} 9... g6
{[%clk 0:01:37.8]} 10. O-O {[%clk 0:02:10.2]} 10... Bg7 {[%clk 0:01:38.3]} 11.
Bf4 {[%clk 0:02:04.5]} 11... O-O {[%clk 0:01:38.4]} 12. Be5 {[%clk 0:02:05.5]}
12... Bf5 {[%clk 0:01:28.6]} 13. Qd2 {[%clk 0:01:43.6]} 13... Rad8 {[%clk
0:01:20.2]} 14. c3 {[%clk 0:01:38.6]} 14... Ne4 {[%clk 0:01:13.1]} 15. Qc1
{[%clk 0:01:38.6]} 15... c5 {[%clk 0:01:08.5]} 16. Bxg7 {[%clk 0:01:38.5]} 16...
Kxg7 {[%clk 0:01:09.1]} 17. Qf4 {[%clk 0:01:32.2]} 17... cxd4 {[%clk 0:01:08.1]}
18. Nxd4 {[%clk 0:01:26.8]} 18... Nd6 {[%clk 0:01:02]} 19. Qe5+ {[%clk
0:01:24.7]} 19... Kg8 {[%clk 0:00:52.1]} 20. Nb3 {[%clk 0:01:01.8]} 20... Rfe8
{[%clk 0:00:47.7]} 21. c4 {[%clk 0:01:01.2]} 21... Qc7 {[%clk 0:00:47.2]} 22.
Rac1 {[%clk 0:00:53.3]} 22... Qd7 {[%clk 0:00:45.7]} 23. Rfd1 {[%clk 0:00:53.8]}
23... Qe6 {[%clk 0:00:46.2]} 24. Qxe6 {[%clk 0:00:54.7]} 24... Bxe6 {[%clk
0:00:47.1]} 25. Na5 {[%clk 0:00:50.1]} 25... b6 {[%clk 0:00:46.6]} 26. Nc6
{[%clk 0:00:51.3]} 26... Ra8 {[%clk 0:00:47]} 27. Bf3 {[%clk 0:00:50.6]} 27...
Rac8 {[%clk 0:00:42.5]} 28. b3 {[%clk 0:00:42.6]} 28... a5 {[%clk 0:00:43.5]}
29. Nxe7+ {[%clk 0:00:43.2]} 29... Rxe7 {[%clk 0:00:44.7]} 30. Rxd6 {[%clk
0:00:44.5]} 30... a4 {[%clk 0:00:45.4]} 31. Rxb6 {[%clk 0:00:45]} 31... axb3
{[%clk 0:00:46.7]} 32. axb3 {[%clk 0:00:46.8]} 32... Bf5 {[%clk 0:00:47.2]} 33.
g4 {[%clk 0:00:47.3]} 33... Bd3 {[%clk 0:00:46.6]} 34. Rd6 {[%clk 0:00:46.4]}
34... Be4 {[%clk 0:00:46.8]} 35. Re1 {[%clk 0:00:44.7]} 35... Rce8 {[%clk
0:00:45.6]} 36. Bxe4 {[%clk 0:00:43.3]} 36... Rxe4 {[%clk 0:00:47.1]} 37. Rxe4
{[%clk 0:00:42.8]} 37... Rxe4 {[%clk 0:00:48.6]} 38. Rd3 {[%clk 0:00:36.8]}
38... Re1+ {[%clk 0:00:49.1]} 39. Kg2 {[%clk 0:00:37.8]} 39... Rc1 {[%clk
0:00:50.6]} 40. h3 {[%clk 0:00:38.8]} 40... Kg7 {[%clk 0:00:51.1]} 41. Re3
{[%clk 0:00:39.7]} 41... Kf6 {[%clk 0:00:51.3]} 42. f4 {[%clk 0:00:39.5]} 42...
h6 {[%clk 0:00:51.5]} 43. Kf3 {[%clk 0:00:40.6]} 43... Rc2 {[%clk 0:00:49.6]}
44. Ke4 {[%clk 0:00:41.6]} 44... Ke6 {[%clk 0:00:51]} 45. Kd4+ {[%clk
0:00:42.6]} 45... Kd6 {[%clk 0:00:52.4]} 46. b4 {[%clk 0:00:42.3]} 46... Rd2+
{[%clk 0:00:52]} 47. Rd3 {[%clk 0:00:43.1]} 47... Rd1 {[%clk 0:00:53.9]} 1-0

[Event "*** MasterClass Titled Tuesday Blitz"]
[Site "Chess.com"]
[Date "2017.12.12"]
[Round "1"]
[White "JSPrepz"]
[Black "misha_chessone"]
[Result "1-0"]
[WhiteElo "2721"]
[BlackElo "2399"]
[TimeControl "180+2"]
[EndTime "13:08:16 PST"]
[Termination "JSPrepz won on time"]

1. e4 {[%clk 0:03:01.9]} 1... Nc6 {[%clk 0:03:00.8]} 2. Nf3 {[%clk 0:03:01.3]}
2... d6 {[%clk 0:03:01.4]} 3. d4 {[%clk 0:03:01.8]} 3... Nf6 {[%clk 0:03:02.6]}
4. Bd3 {[%clk 0:03:00.6]} 4... g6 {[%clk 0:03:03.3]} 5. c3 {[%clk 0:03:01.6]}
5... Bg7 {[%clk 0:03:04.7]} 6. O-O {[%clk 0:03:02.7]} 6... O-O {[%clk
0:03:06.1]} 7. Re1 {[%clk 0:03:03.4]} 7... e5 {[%clk 0:03:06.9]} 8. h3 {[%clk
0:03:03.3]} 8... Nh5 {[%clk 0:03:06.6]} 9. d5 {[%clk 0:03:00.3]} 9... Ne7 {[%clk
0:03:07]} 10. c4 {[%clk 0:03:01.2]} 10... f5 {[%clk 0:02:48.2]} 11. Nc3 {[%clk
0:03:01.8]} 11... fxe4 {[%clk 0:02:40.7]} 12. Nxe4 {[%clk 0:03:02.4]} 12... h6
{[%clk 0:02:37.6]} 13. c5 {[%clk 0:02:57.7]} 13... Nf4 {[%clk 0:02:34.1]} 14.
cxd6 {[%clk 0:02:57.7]} 14... cxd6 {[%clk 0:02:33.9]} 15. Bxf4 {[%clk
0:02:58.4]} 15... Rxf4 {[%clk 0:02:33.7]} 16. Ng3 {[%clk 0:02:57]} 16... Nf5
{[%clk 0:02:26.1]} 17. Rc1 {[%clk 0:02:19.1]} 17... Bf8 {[%clk 0:02:10.5]} 18.
Be4 {[%clk 0:02:18.9]} 18... Qb6 {[%clk 0:02:03.9]} 19. Nf1 {[%clk 0:02:04.1]}
19... Ne7 {[%clk 0:01:52.6]} 20. Qc2 {[%clk 0:01:58.6]} 20... Bf5 {[%clk
0:01:43.4]} 21. Ng3 {[%clk 0:01:59.6]} 21... Rc8 {[%clk 0:01:36.4]} 22. Qe2
{[%clk 0:01:47.7]} 22... Rc5 {[%clk 0:01:27.7]} 23. Bxf5 {[%clk 0:01:38.9]}
23... gxf5 {[%clk 0:01:24.7]} 24. Nh5 {[%clk 0:01:40]} 24... Rb4 {[%clk
0:01:07.8]} 25. Nf6+ {[%clk 0:01:39.6]} 25... Kf7 {[%clk 0:01:03.2]} 26. Nd7
{[%clk 0:01:40.7]} 26... Rxc1 {[%clk 0:01:01.5]} 27. Nxb6 {[%clk 0:01:36.7]}
27... Rxe1+ {[%clk 0:01:01]} 28. Nxe1 {[%clk 0:01:36.2]} 28... Rxb6 {[%clk
0:01:01.3]} 29. a4 {[%clk 0:01:12]} 29... Bg7 {[%clk 0:00:57.1]} 30. Nd3 {[%clk
0:01:09.3]} 30... a6 {[%clk 0:00:34.1]} 31. b4 {[%clk 0:01:07.4]} 31... e4
{[%clk 0:00:30.3]} 32. Qh5+ {[%clk 0:01:02.2]} 32... Kf6 {[%clk 0:00:22.3]} 33.
Nf4 {[%clk 0:00:47.8]} 33... Rxb4 {[%clk 0:00:22.8]} 34. Qe8 {[%clk 0:00:41.2]}
34... Rb1+ {[%clk 0:00:20.6]} 35. Kh2 {[%clk 0:00:42.4]} 35... e3 {[%clk
0:00:14.8]} 36. fxe3 {[%clk 0:00:43]} 36... Rb4 {[%clk 0:00:14.5]} 37. Nh5+
{[%clk 0:00:41.3]} 37... Kg5 {[%clk 0:00:13.2]} 38. Nxg7 {[%clk 0:00:41.4]} 1-0

[Event "*** MasterClass Titled Tuesday Blitz"]
[Site "Chess.com"]
[Date "2017.12.12"]
[Round "1"]
[White "cheese111"]
[Black "aa175"]
[Result "0-1"]
[WhiteElo "2399"]
[BlackElo "1894"]
[TimeControl "180+2"]
[EndTime "13:08:18 PST"]
[Termination "aa175 won on time"]

1. e4 {[%clk 0:03:00.9]} 1... e5 {[%clk 0:02:59.8]} 2. Nf3 {[%clk 0:03:01.9]}
2... Nc6 {[%clk 0:02:54.7]} 3. Bc4 {[%clk 0:03:02.7]} 3... Bc5 {[%clk
0:02:52.1]} 4. O-O {[%clk 0:03:02.6]} 4... d6 {[%clk 0:02:47]} 5. d3 {[%clk
0:03:02.1]} 5... Nf6 {[%clk 0:02:38.6]} 6. c3 {[%clk 0:03:02.4]} 6... a6 {[%clk
0:02:31.2]} 7. Re1 {[%clk 0:03:01.5]} 7... Ba7 {[%clk 0:02:27.4]} 8. Bb3 {[%clk
0:03:01.9]} 8... O-O {[%clk 0:02:20.9]} 9. h3 {[%clk 0:03:01]} 9... Kh8 {[%clk
0:02:14.1]} 10. d4 {[%clk 0:02:56.5]} 10... Qe7 {[%clk 0:02:03.6]} 11. Be3
{[%clk 0:02:50.5]} 11... Rd8 {[%clk 0:01:47.6]} 12. Nbd2 {[%clk 0:02:44.9]}
12... Qf8 {[%clk 0:01:26.9]} 13. Bg5 {[%clk 0:02:18.2]} 13... exd4 {[%clk
0:01:01.2]} 14. Bxf6 {[%clk 0:02:04.8]} 14... gxf6 {[%clk 0:00:57.1]} 15. Nc4
{[%clk 0:02:04.4]} 15... b5 {[%clk 0:00:50.3]} 16. Ncd2 {[%clk 0:01:59.5]} 16...
dxc3 {[%clk 0:00:47.8]} 17. bxc3 {[%clk 0:02:01.4]} 17... Qg7 {[%clk 0:00:47.2]}
18. Kf1 {[%clk 0:01:49.4]} 18... Rg8 {[%clk 0:00:43.6]} 19. Nh4 {[%clk 0:01:31]}
19... Bxf2 {[%clk 0:00:37.5]} 20. Kxf2 {[%clk 0:01:30.6]} 20... Qg3+ {[%clk
0:00:38.4]} 21. Kf1 {[%clk 0:01:31.5]} 21... Qxh4 {[%clk 0:00:39.4]} 22. Nf3
{[%clk 0:01:08.6]} 22... Qg3 {[%clk 0:00:31.7]} 23. Qe2 {[%clk 0:00:29.2]} 23...
Bxh3 {[%clk 0:00:18.3]} 24. gxh3 {[%clk 0:00:21.2]} 24... Qxh3+ {[%clk
0:00:20.2]} 25. Kf2 {[%clk 0:00:22.4]} 25... Rg2+ {[%clk 0:00:19.9]} 26. Ke3
{[%clk 0:00:22.9]} 26... Qh6+ {[%clk 0:00:20.2]} 27. Kd3 {[%clk 0:00:23.4]}
27... Rxe2 {[%clk 0:00:21]} 28. Rxe2 {[%clk 0:00:22.9]} 28... Ne5+ {[%clk
0:00:22]} 29. Nxe5 {[%clk 0:00:24.1]} 29... dxe5 {[%clk 0:00:22.9]} 30. Rf1
{[%clk 0:00:24.5]} 30... Qh3+ {[%clk 0:00:23.2]} 31. Kd2 {[%clk 0:00:20.9]}
31... Qxf1 {[%clk 0:00:23.9]} 32. Re1 {[%clk 0:00:20.5]} 32... Qf2+ {[%clk
0:00:24.6]} 33. Kd1 {[%clk 0:00:21]} 33... Rd8+ {[%clk 0:00:25.6]} 34. Bd5
{[%clk 0:00:22.5]} 34... c6 {[%clk 0:00:25.8]} 35. Re2 {[%clk 0:00:24.4]} 35...
Qf1+ {[%clk 0:00:26.6]} 36. Re1 {[%clk 0:00:24.8]} 36... Qd3+ {[%clk 0:00:27.4]}
0-1

[Event "*** MasterClass Titled Tuesday Blitz"]
[Site "Chess.com"]
[Date "2017.12.12"]
[Round "1"]
[White "jposthuma"]
[Black "Rsnr"]
[Result "0-1"]
[WhiteElo "2325"]
[BlackElo "2633"]
[TimeControl "180+2"]
[EndTime "13:08:20 PST"]
[Termination "Rsnr won on time"]

1. d4 {[%clk 0:02:59.5]} 1... d5 {[%clk 0:03:00.7]} 2. c4 {[%clk 0:03:00.2]}
2... c6 {[%clk 0:03:02.3]} 3. Nf3 {[%clk 0:03:01]} 3... Nf6 {[%clk 0:03:03.5]}
4. g3 {[%clk 0:02:59.9]} 4... Bf5 {[%clk 0:03:03.6]} 5. Bg2 {[%clk 0:02:57.6]}
5... e6 {[%clk 0:03:05]} 6. O-O {[%clk 0:02:58.4]} 6... h6 {[%clk 0:03:03.8]} 7.
Nbd2 {[%clk 0:02:56.6]} 7... Be7 {[%clk 0:03:01.9]} 8. b3 {[%clk 0:02:34.3]}
8... O-O {[%clk 0:03:02.1]} 9. Bb2 {[%clk 0:02:34.4]} 9... a5 {[%clk 0:03:02.9]}
10. a4 {[%clk 0:02:20.7]} 10... Na6 {[%clk 0:02:55.8]} 11. Ne5 {[%clk 0:02:20]}
11... Nb4 {[%clk 0:02:56.2]} 12. Rc1 {[%clk 0:01:59.9]} 12... Bh7 {[%clk
0:02:56.6]} 13. Ndf3 {[%clk 0:01:40.4]} 13... Ne4 {[%clk 0:02:55.2]} 14. Nd3
{[%clk 0:01:39]} 14... Qb6 {[%clk 0:02:45]} 15. c5 {[%clk 0:01:35]} 15... Qa6
{[%clk 0:02:45.6]} 16. Nxb4 {[%clk 0:01:35.3]} 16... axb4 {[%clk 0:02:47.5]} 17.
Ra1 {[%clk 0:01:08.8]} 17... b6 {[%clk 0:02:41.2]} 18. cxb6 {[%clk 0:01:08.1]}
18... Qxb6 {[%clk 0:02:43.1]} 19. Ne5 {[%clk 0:01:02.8]} 19... Rfc8 {[%clk
0:02:44.1]} 20. Rc1 {[%clk 0:01:00]} 20... Rc7 {[%clk 0:02:12.5]} 21. e3 {[%clk
0:00:50.3]} 21... c5 {[%clk 0:02:07.6]} 22. dxc5 {[%clk 0:00:50.8]} 22... Bxc5
{[%clk 0:02:09.2]} 23. Nd3 {[%clk 0:00:30.2]} 23... Bd6 {[%clk 0:01:54.8]} 24.
Rxc7 {[%clk 0:00:29.5]} 24... Qxc7 {[%clk 0:01:56.7]} 25. Qg4 {[%clk 0:00:24.5]}
25... f5 {[%clk 0:01:52.7]} 26. Qe2 {[%clk 0:00:23.6]} 26... Nc3 {[%clk
0:01:51.4]} 27. Qd2 {[%clk 0:00:21.6]} 27... Rc8 {[%clk 0:01:46]} 28. Rc1 {[%clk
0:00:20.7]} 28... Qa5 {[%clk 0:01:43.1]} 29. Nf4 {[%clk 0:00:17.6]} 29... Kf7
{[%clk 0:01:34.9]} 30. h4 {[%clk 0:00:09.3]} 30... g5 {[%clk 0:01:34.3]} 31.
hxg5 {[%clk 0:00:09.6]} 31... hxg5 {[%clk 0:01:36.2]} 32. Nd3 {[%clk 0:00:09.9]}
32... e5 {[%clk 0:01:08.9]} 33. Ne1 {[%clk 0:00:05.3]} 33... e4 {[%clk
0:01:08.9]} 34. Nc2 {[%clk 0:00:05]} 34... Be5 {[%clk 0:01:06.7]} 35. Nd4 {[%clk
0:00:03.3]} 35... Rc7 {[%clk 0:00:56.4]} 36. Bf1 {[%clk 0:00:04]} 36... Bg6
{[%clk 0:00:56.5]} 37. Kg2 {[%clk 0:00:03.5]} 37... Rc5 {[%clk 0:00:50.5]} 38.
Nb5 {[%clk 0:00:03.7]} 38... Kf6 {[%clk 0:00:39.5]} 39. Rc2 {[%clk 0:00:03.6]}
39... Be8 {[%clk 0:00:40]} 0-1